bitfinex/quotes_ETHUSD_20240710
["timestamp","ask_amount","ask_price","bid_price","bid_amount"]
[1720640132865,1.03624518,3116.3,3115.7,0.5856]
[1720640133036,1.03624518,3116.2,3115.7,0.5856]
[1720640133236,0.55,3116.8,3115.7,0.5856]
[1720640133435,2.4469,3116.6,3115.3,6.726]
[1720640133671,1.58631628,3116.5,3115.3,6.726]
[1720640133977,1.03631628,3116.4,3115.3,6.726]
[1720640134178,0.55,3116.3,3115.3,6.726]
[1720640134384,1.03631628,3116.2,3115.3,6.726]
[1720640134530,2.3051,3116.1,3115.3,6.726]
[1720640134734,1.37067431,3116.0,3115.3,6.726]
[1720640135348,1.37067431,3116.0,3115.1,2.856]
[1720640136246,1.03653268,3116.0,3115.1,2.856]
[1720640137034,1.03653268,3116.0,3115.5,2.856]
[1720640137267,1.03653268,3115.9,3115.5,2.856]
[1720640137476,1.03645975,3115.8,3115.5,2.856]
[1720640137675,0.55,3116.3,3115.5,2.856]
[1720640137977,1.03649958,3116.2,3115.1,2.856]
[1720640138137,1.58649958,3116.1,3115.1,3.1416]
[1720640138476,1.03649958,3116.0,3115.1,3.1416]
[1720640138979,0.55,3116.4,3115.1,3.1416]
[1720640139277,1.03652567,3116.3,3115.1,3.1416]
[1720640139666,1.03652567,3116.3,3115.2,3.0]
[1720640139855,1.03652567,3116.3,3115.3,0.61416]
[1720640142535,0.55,3116.4,3115.3,0.61416]
[1720640142536,1.03647398,3116.2,3115.3,0.61416]
[1720640142858,1.03647398,3116.1,3115.3,0.61416]
[1720640143175,1.03647398,3116.0,3115.3,0.61416]
[1720640143496,1.03647398,3115.9,3115.3,0.61416]
[1720640143775,0.55,3116.4,3115.4,0.361416]
[1720640144074,1.03645069,3116.3,3115.4,0.361416]
[1720640145071,1.03645069,3116.3,3115.4,3.361416]
[1720640145975,0.55,3116.4,3115.4,3.361416]
[1720640145976,1.03643408,3116.2,3115.4,3.361416]
[1720640146366,1.03643408,3116.1,3115.4,3.361416]
[1720640146678,1.03643408,3116.0,3115.5,0.6313976]
[1720640146839,0.33615313,3116.1,3115.5,0.6313976]
[1720640151652,0.33615313,3116.1,3115.5,3.4873976]
[1720640151851,0.33615313,3116.1,3115.6,3.0]
[1720640160763,1.37240877,3116.1,3115.4,0.361416]
[1720640160963,1.65492408,3116.1,3115.1,9.582]
[1720640161175,1.03625564,3116.0,3115.1,9.582]
[1720640161501,0.33615313,3116.1,3115.1,9.582]
[1720640161682,1.37249624,3116.1,3115.1,9.582]
[1720640162702,1.37249624,3116.1,3115.2,3.0]
[1720640162904,0.33615313,3116.1,3115.2,3.0]
[1720640163086,1.37247923,3116.1,3115.3,1.2582]
[1720640164117,2.3721,3116.0,3115.1,6.726]
[1720640164293,1.0363261,3115.9,3115.1,6.726]
[1720640164609,0.55,3115.8,3115.1,6.726]
[1720640164906,1.0363261,3115.7,3115.1,6.726]
[1720640165073,1.0363261,3115.7,3115.0,2.407]
[1720640165074,1.0363261,3115.6,3115.2,0.9133]
[1720640165402,0.33617804,3115.7,3115.2,2.856]
[1720640165960,0.33617804,3115.7,3115.2,2.9201898]
[1720640166199,0.33617804,3115.7,3115.3,0.0641898]
[1720640166599,0.33617804,3115.7,3115.3,3.0]
[1720640166907,0.33617804,3115.7,3115.2,2.856]
[1720640167064,0.33617804,3115.7,3115.3,3.2856]
[1720640167607,0.33617804,3115.7,3115.3,3.34979006]
[1720640168262,0.33617804,3115.7,3115.6,2.856]
[1720640168471,0.33617804,3115.7,3115.6,5.856]
[1720640168809,1.03642165,3116.2,3115.6,8.2914]
[1720640169106,0.33613886,3115.9,3115.7,0.82914]
[1720640171202,0.33613886,3115.9,3115.7,3.82914]
[1720640171507,0.33613886,3115.9,3115.7,3.89331877]
[1720640171808,0.33613886,3115.9,3115.7,3.82914]
[1720640171967,0.33613886,3115.9,3115.8,0.912054]
[1720640173815,0.33613886,3115.9,3115.7,3.0]
[1720640174008,0.33613886,3115.9,3115.3,7.0116]
[1720640174009,0.33613886,3115.9,3115.4,3.0]
[1720640174181,0.33613886,3115.9,3115.6,2.856]
[1720640174387,0.33613886,3115.9,3115.7,3.0]
[1720640182419,1.03625564,3116.3,3115.7,3.0]
[1720640182624,1.03625564,3116.3,3115.8,0.5856]
[1720640182829,1.03625564,3116.3,3115.7,3.0]
[1720640183585,1.0363331,3116.2,3115.7,3.0]
[1720640183924,1.0363331,3116.1,3115.7,3.0]
[1720640184133,2.3812,3116.4,3115.7,3.0]
[1720640184134,1.0363331,3116.0,3115.7,3.0]
[1720640184425,1.0363331,3115.9,3115.7,3.0]
[1720640184600,2.3812,3116.4,3115.8,0.5856]
[1720640184817,1.03633358,3116.3,3115.8,0.5856]
[1720640187092,1.03627512,3116.2,3115.8,0.5856]
[1720640187425,1.03627512,3116.1,3115.8,0.5856]
[1720640187590,2.3812,3116.4,3115.8,0.5856]
[1720640187786,1.03631642,3116.3,3115.8,0.5856]
[1720640190348,1.03631642,3116.3,3115.9,0.35856]
[1720640190509,0.33613456,3116.5,3115.9,0.35856]
[1720640190510,1.03631642,3116.2,3115.9,0.35856]
[1720640190711,1.0362409,3116.1,3115.9,0.35856]
[1720640190947,1.0362409,3116.0,3115.9,0.35856]
[1720640191613,1.37237546,3116.5,3115.9,0.35856]
[1720640191918,1.0362409,3116.4,3115.9,0.35856]
[1720640192121,1.0362409,3116.3,3115.9,0.35856]
[1720640192369,1.0362409,3116.2,3115.9,0.35856]
[1720640192646,1.0362409,3116.1,3115.9,0.35856]
[1720640193447,1.0362409,3116.0,3115.9,0.35856]
[1720640193606,1.37237546,3116.5,3115.9,0.35856]
[1720640194248,1.0362338,3116.4,3115.9,0.35856]
[1720640194547,1.0362338,3116.3,3115.9,0.35856]
[1720640194718,0.33613456,3116.5,3115.9,0.35856]
[1720640195212,1.3723774,3116.5,3115.9,0.35856]
[1720640197409,1.3723774,3116.5,3116.0,2.856]
[1720640197610,2.4874,3117.1,3116.1,0.558816]
[1720640197611,1.03624284,3116.4,3116.1,0.558816]
[1720640197833,2.4874,3117.1,3116.1,0.558816]
[1720640198048,1.03598504,3117.0,3116.1,0.558816]
[1720640198354,1.03597773,3116.9,3116.1,0.558816]
[1720640198527,1.03597773,3116.8,3116.1,0.558816]
[1720640198730,1.03597773,3116.7,3116.2,0.3414816]
[1720640198917,1.03597773,3116.6,3116.2,0.3414816]
[1720640199118,1.03597773,3116.5,3116.2,0.3414816]
[1720640199318,2.4874,3117.1,3116.2,0.3414816]
[1720640199548,1.03598232,3117.0,3116.2,0.3414816]
[1720640201337,1.03598232,3117.0,3116.3,0.39002976]
[1720640201654,2.4874,3117.1,3116.3,0.39002976]
[1720640201833,1.03597476,3117.0,3116.3,0.39002976]
[1720640205146,2.4874,3117.1,3116.3,0.39002976]
[1720640205462,1.0360344,3117.0,3116.3,0.39002976]
[1720640205642,1.0360344,3117.0,3116.4,2.4532]
[1720640205856,1.0360344,3116.9,3116.5,0.28432298]
[1720640206019,1.0360344,3116.8,3116.5,0.28432298]
[1720640206218,2.4657,3117.5,3116.5,0.28432298]
[1720640206448,1.58592717,3117.4,3116.5,0.28432298]
[1720640206655,1.03592717,3117.3,3116.9,1.189]
[1720640207451,1.44108989,3117.3,3116.9,1.189]
[1720640207648,1.03592717,3117.2,3116.9,1.189]
[1720640208659,0.40516272,3117.3,3116.9,1.189]
[1720640208831,1.0359865,3117.2,3116.9,1.189]
[1720640209855,2.2639,3117.1,3116.7,1.189]
[1720640210265,1.0359865,3117.0,3116.2,6.726]
[1720640210420,1.0359865,3117.0,3116.3,1.189]
[1720640210622,1.0359865,3117.0,3115.4,12.46]
[1720640210623,3.6353,3116.9,3115.4,9.149]
[1720640210859,2.4463,3116.8,3115.9,1.189]
[1720640211159,0.96853,3116.7,3115.9,1.189]
[1720640211826,2.4463,3116.5,3115.9,1.189]
[1720640212032,1.5859865,3116.4,3115.9,1.189]
[1720640212287,1.03641433,3116.3,3115.9,1.189]
[1720640212455,1.03641433,3116.3,3115.7,1.189]
[1720640212627,1.03641433,3116.3,3115.0,5.279]
[1720640212628,2.2848,3116.2,3115.0,5.279]
[1720640212830,1.03641433,3116.1,3115.1,1.2005]
[1720640213038,0.55,3116.0,3115.0,2.856]
[1720640213356,1.03641433,3115.9,3115.0,2.856]
[1720640213548,0.55,3115.8,3115.0,2.856]
[1720640213857,1.03641433,3115.7,3115.0,2.856]
[1720640215545,0.55,3115.8,3115.0,2.856]
[1720640215747,1.03659699,3115.7,3115.1,0.2856]
[1720640216059,0.55,3116.1,3115.1,0.2856]
[1720640216060,1.03659699,3115.6,3115.1,0.2856]
[1720640216236,1.03659699,3115.5,3115.1,0.2856]
[1720640216435,0.55,3116.1,3115.1,0.2856]
[1720640216761,1.0365969,3116.0,3115.0,2.856]
[1720640216935,0.55,3115.9,3115.0,2.856]
[1720640217271,1.0365969,3115.8,3115.0,2.856]
[1720640219147,1.03654142,3115.7,3115.0,2.856]
[1720640219348,1.03654142,3115.6,3115.0,2.856]
[1720640219660,0.55,3115.9,3115.1,0.2856]
[1720640219982,1.03654883,3115.8,3115.1,0.2856]
[1720640220277,1.03654883,3115.7,3115.1,0.2856]
[1720640220495,1.03654883,3115.6,3115.1,0.2856]
[1720640220665,0.55,3116.1,3115.1,0.2856]
[1720640220869,1.32004641,3116.0,3115.1,0.2856]
[1720640221172,0.55,3115.9,3115.1,0.2856]
[1720640221377,1.03656641,3115.8,3115.1,0.2856]
[1720640221886,1.03655831,3115.7,3115.0,2.856]
[1720640222185,1.03655831,3115.6,3115.0,2.856]
[1720640222362,0.55,3115.9,3115.0,2.856]
[1720640222560,1.03661678,3115.8,3115.0,2.856]
[1720640223896,2.2848,3116.2,3115.1,2.2982]
[1720640224193,1.03645102,3116.1,3115.2,0.51542]
[1720640225955,0.33613585,3116.0,3115.2,0.51542]
[1720640228669,0.33613585,3116.0,3115.4,2.856]
[1720640228970,0.33613585,3116.0,3115.5,2.3235]
[1720640230859,0.33613585,3116.0,3115.5,5.3235]
[1720640231084,0.33613585,3116.0,3115.6,0.88213768]
[1720640232902,0.33613585,3116.0,3115.6,0.81795]
[1720640234772,0.33613585,3116.0,3115.9,1.19]
[1720640235666,0.33613585,3116.0,3115.3,3.0]
[1720640235891,0.33613585,3116.0,3115.7,1.19]
[1720640235892,1.37256254,3116.0,3115.7,1.19]
[1720640238973,0.33613585,3116.0,3115.7,1.19]
[1720640239207,0.33613585,3116.0,3115.3,3.0]
[1720640239208,1.37261061,3116.0,3115.9,1.19]
[1720640239417,0.33613585,3116.0,3115.9,1.19]
[1720640246090,1.37258405,3116.0,3115.9,1.19]
[1720640247885,0.33613585,3116.0,3115.9,1.19]
[1720640251188,0.33613585,3116.0,3115.7,1.19]
[1720640253694,1.37263261,3116.0,3115.7,1.19]
[1720640253893,1.03649676,3115.9,3115.7,1.19]
[1720640254132,1.03649676,3115.8,3115.7,1.19]
[1720640254305,0.33613585,3116.0,3115.7,1.19]
[1720640256158,2.4613,3115.9,3115.7,1.19]
[1720640256437,1.03649794,3115.8,3115.7,1.19]
[1720640256636,2.74104359,3115.9,3115.5,1.19]
[1720640256821,1.58657327,3115.8,3115.5,1.19]
[1720640257009,1.03657327,3115.7,3115.5,1.19]
[1720640260365,1.03657603,3115.6,3115.5,1.19]
[1720640261067,1.37274155,3115.6,3115.5,1.19]
[1720640261218,0.33616552,3115.6,3115.5,1.54302]
[1720640279874,0.33616552,3115.6,3115.5,1.19]
[1720640281530,0.33616552,3115.6,3114.7,3.0]
[1720640281758,0.33616552,3115.6,3115.5,1.19]
[1720640300611,0.33616552,3115.6,3115.0,3.0]
[1720640300809,0.33616552,3115.6,3115.5,1.19]
[1720640301265,0.59784207,3115.6,3115.5,1.19]
[1720640302130,3.03404207,3115.6,3115.5,1.19]
[1720640303440,2.77236552,3115.6,3115.5,1.19]
[1720640328311,2.77236552,3115.6,3114.7,3.0]
[1720640328512,2.77236552,3115.6,3115.4,1.19]
[1720640332445,2.77236552,3115.6,3114.0,1.0130452]
[1720640332662,2.8,3115.5,3114.1,2.3264]
[1720640332810,2.8,3115.5,3114.6,1.19]
[1720640332811,2.25,3115.4,3114.6,1.19]
[1720640333011,2.25,3115.4,3114.1,2.3264]
[1720640333012,2.25,3115.2,3114.8,1.19]
[1720640333306,0.55,3115.1,3114.8,1.19]
[1720640333512,0.28,3115.0,3114.8,1.19]
[1720640336144,2.2797,3114.9,3114.6,1.19]
[1720640339473,2.336,3115.6,3115.3,1.19]
[1720640339833,0.55,3115.5,3115.3,1.19]
[1720640344358,0.55,3115.5,3115.1,1.19]
[1720640346073,0.33618978,3115.7,3115.4,1.19]
[1720640346273,0.33618978,3115.7,3115.6,1.19]
[1720640346569,2.3446,3115.9,3115.6,1.19]
[1720640349839,2.2741,3116.1,3115.6,1.19]
[1720640350189,0.55,3116.0,3115.6,1.19]
[1720640356803,1.27841,3116.0,3115.6,1.19]
[1720640358795,1.27841,3116.0,3115.8,1.19]
[1720640358966,0.55,3116.0,3115.8,1.19]
[1720640360282,0.55,3116.0,3114.9,2.2597]
[1720640360487,0.55,3116.0,3115.6,1.19]
[1720640361866,0.55,3116.0,3115.8,1.19]
[1720640370665,0.88615645,3116.0,3115.8,1.19]
[1720640370937,0.33615645,3116.0,3115.8,1.19]
[1720640374503,0.33615645,3116.0,3115.7,2.3518]
[1720640374704,0.33615645,3116.0,3115.9,1.19]
[1720640378308,0.33615645,3116.0,3115.9,3.6289]
[1720640378764,0.33615645,3116.0,3115.9,6.6289]
[1720640394876,0.33615645,3116.0,3115.9,4.19]
[1720640395040,0.33615645,3116.0,3115.9,4.885828]
[1720640395242,0.33615645,3116.0,3115.9,1.885828]
[1720640398937,0.33615645,3116.0,3115.4,2.3862]
[1720640399137,0.33615645,3116.0,3115.9,1.19]
[1720640400139,0.33615645,3116.0,3115.2,5.3862]
[1720640400342,2.4294,3115.9,3115.1,7.4]
[1720640400545,2.4294,3115.7,3114.6,7.4]
[1720640400738,1.03655104,3115.6,3114.2,2.4896]
[1720640401085,0.55,3115.8,3115.2,1.19]
[1720640401086,3.46614912,3115.5,3115.2,1.19]
[1720640401385,3.46614912,3115.5,3114.2,2.4896]
[1720640401386,1.03674912,3115.4,3114.2,2.4896]
[1720640401539,2.76556672,3115.5,3115.4,1.19]
[1720640405185,0.33616672,3115.5,3115.4,1.19]
[1720640408645,2.60556672,3115.5,3115.4,1.19]
[1720640409745,2.60556672,3115.5,3115.0,3.0]
[1720640409746,2.60556672,3115.5,3115.2,1.19]
[1720640410187,2.2694,3115.5,3115.2,1.19]
[1720640410505,0.55,3115.4,3114.9,7.4]
[1720640410645,1.58672889,3115.4,3115.0,1.19]
[1720640411003,2.4142,3115.3,3115.0,1.19]
[1720640411290,2.4142,3115.3,3115.2,1.19]
[1720640411500,3.45096608,3115.3,3115.2,1.19]
[1720640411700,3.4509661,3115.3,3115.2,1.19]
[1720640412305,2.4142,3115.3,3115.2,1.19]
[1720640415461,2.75031175,3115.3,3115.2,1.19]
[1720640417151,0.33611175,3115.3,3115.2,1.19]
[1720640418460,0.33611175,3115.3,3115.2,3.642]
[1720640418678,0.33611175,3115.3,3115.2,1.5542]
[1720640418892,0.33611175,3115.3,3115.2,1.19]
[1720640430400,0.33611175,3115.3,3115.0,3.0]
[1720640430701,0.33611175,3115.3,3115.2,1.19]
[1720640435929,2.75501175,3115.3,3115.2,1.19]
[1720640442166,0.33611175,3115.3,3115.2,1.19]
[1720640444157,0.33611175,3115.3,3115.2,3.4481]
[1720640444321,0.33611175,3115.3,3115.2,3.79291]
[1720640446549,0.33611175,3115.3,3115.2,1.53481]
[1720640446764,0.33611175,3115.3,3115.2,1.19]
[1720640447434,1.37266441,3115.3,3115.2,1.19]
[1720640447629,0.33611175,3115.3,3115.2,1.19]
[1720640447833,1.37266441,3115.3,3115.2,1.19]
[1720640448066,0.33611175,3115.3,3115.2,1.19]
[1720640450862,1.37266895,3115.3,3115.2,1.19]
[1720640453435,1.37268481,3115.3,3115.2,1.19]
[1720640456870,1.37268661,3115.3,3115.2,1.19]
[1720640457036,1.37268679,3115.3,3115.2,1.19]
[1720640459577,0.33611175,3115.3,3115.2,1.19]
[1720640466966,1.37268204,3115.3,3115.2,1.19]
[1720640467881,0.33611175,3115.3,3115.2,1.19]
[1720640468258,1.03657029,3115.6,3115.3,2.3923]
[1720640468467,2.3128,3116.4,3115.6,2.3923]
[1720640468675,1.03624554,3116.3,3115.6,2.3923]
[1720640468972,1.03624554,3116.3,3116.2,1.19]
[1720640469894,2.64885344,3116.4,3116.2,1.19]
[1720640470199,1.03620279,3116.3,3115.7,3.0]
[1720640470406,1.03620279,3116.3,3116.2,1.19]
[1720640473465,0.33605344,3116.4,3116.2,1.19]
[1720640481689,0.33605344,3116.4,3115.7,3.0]
[1720640481690,2.76235344,3116.4,3115.7,3.0]
[1720640482006,2.76235344,3116.4,3115.6,3.0]
[1720640482211,2.76235344,3116.4,3116.2,1.19]
[1720640482718,1.03625048,3116.3,3116.0,1.19]
[1720640483031,2.8016,3116.2,3115.8,1.19]
[1720640483240,1.03625048,3116.1,3115.8,1.19]
[1720640483419,1.03625048,3116.1,3116.0,1.19]
[1720640483625,1.58625048,3116.1,3116.0,1.19]
[1720640483830,1.58638844,3116.1,3116.0,1.19]
[1720640484648,1.58638844,3116.1,3115.1,7.4]
[1720640484649,2.3671,3116.0,3115.1,7.4]
[1720640484797,1.58638844,3115.9,3115.5,1.19]
[1720640485143,1.58638844,3115.9,3113.6,1.01029578]
[1720640485144,2.3671,3115.7,3115.3,1.19]
[1720640485431,2.3671,3115.7,3114.4,2.3057]
[1720640485602,1.58638844,3115.6,3114.5,1.069466]
[1720640485802,1.03638844,3115.5,3115.2,1.19]
[1720640486002,0.55,3115.4,3115.2,1.19]
[1720640486213,1.03638844,3115.3,3115.2,1.19]
[1720640487412,0.55,3115.4,3115.2,1.19]
[1720640487738,0.3360548,3115.8,3115.2,1.19]
[1720640487919,0.3360548,3115.8,3115.6,1.19]
[1720640488902,1.03628118,3116.6,3115.6,1.19]
[1720640489099,1.03628118,3116.6,3116.5,1.19]
[1720640489309,1.6900193,3116.6,3116.5,1.19]
[1720640489709,2.02606195,3116.6,3116.5,1.19]
[1720640490303,2.57606195,3116.6,3116.5,1.19]
[1720640490500,2.57606195,3116.6,3115.4,7.4]
[1720640490501,1.53978077,3116.6,3115.8,2.855]
[1720640490704,1.586295,3116.5,3115.8,2.855]
[1720640490956,1.036295,3116.4,3115.8,3.1405]
[1720640491237,0.33604265,3116.6,3115.8,5.5065]
[1720640491534,1.37219943,3116.6,3115.9,3.0]
[1720640492765,0.33604265,3116.6,3116.2,2.855]
[1720640493033,0.33604265,3116.6,3116.3,0.2855]
[1720640493924,0.33604265,3116.6,3116.3,0.34967306]
[1720640494245,0.33604265,3116.6,3116.3,3.2855]
[1720640498787,0.33604265,3116.6,3116.4,2.47767049]
[1720640499058,1.03579642,3117.5,3116.4,5.47765881]
[1720640499257,0.33604558,3117.4,3117.1,2.855]
[1720640500765,0.33604558,3117.4,3116.7,2.855]
[1720640501715,0.33604558,3117.4,3116.7,5.2685]
[1720640501876,0.33604558,3117.4,3116.8,1.26685]
[1720640504228,0.33604558,3117.4,3117.3,2.855]
[1720640504380,0.111568,3117.6,3117.3,2.855]
[1720640509333,0.111568,3117.6,3117.4,5.4836]
[1720640512042,2.2839,3119.4,3117.5,2.319]
[1720640512248,2.2839,3119.4,3118.4,2.855]
[1720640513317,2.2839,3119.4,3118.0,3.0]
[1720640513769,2.2839,3119.4,3118.3,2.855]
[1720640515892,2.2839,3119.2,3118.3,2.855]
[1720640516068,2.2839,3119.0,3118.3,2.855]
[1720640516266,0.55,3118.9,3118.3,2.855]
[1720640516679,0.55,3118.9,3118.0,3.0]
[1720640517948,2.2548,3118.8,3118.0,3.0]
[1720640518149,2.2548,3118.8,3117.9,10.255]
[1720640518150,2.2548,3118.6,3117.9,7.4]
[1720640518354,2.2548,3118.6,3117.6,2.855]
[1720640518578,0.55,3118.5,3117.6,2.855]
[1720640520198,2.4815,3118.4,3117.0,7.4]
[1720640520386,2.4815,3118.2,3117.0,2.855]
[1720640520587,3.28048,3118.7,3117.0,2.855]
[1720640520588,2.4815,3118.0,3117.0,2.855]
[1720640520910,0.55,3117.9,3117.0,2.855]
[1720640523299,2.3301,3117.8,3116.6,2.855]
[1720640523461,0.83801,3117.7,3116.6,2.855]
[1720640523666,2.2963,3117.6,3116.6,2.855]
[1720640523966,0.55,3117.5,3116.6,2.855]
[1720640525584,2.2963,3117.4,3116.6,2.855]
[1720640525785,0.55,3117.3,3116.2,2.855]
[1720640526001,0.28463,3117.2,3116.2,2.855]
[1720640526215,0.55,3117.1,3116.2,2.855]
[1720640527606,2.2828,3117.0,3116.2,2.855]
[1720640527778,0.55,3116.9,3116.2,2.855]
[1720640536043,0.3360884,3116.8,3116.2,2.855]
[1720640536351,0.3360884,3116.8,3116.3,0.2855]
[1720640540322,0.3360884,3116.8,3116.2,2.855]
[1720640540520,2.9211,3116.7,3115.8,2.855]
[1720640546256,2.9211,3116.7,3115.7,3.0]
[1720640546456,2.9211,3116.7,3115.2,10.255]
[1720640546657,1.03645535,3116.6,3115.3,3.0]
[1720640546862,2.9821,3116.5,3115.4,0.5855]
[1720640548679,2.9821,3116.5,3115.3,3.0]
[1720640549261,2.9821,3116.5,3115.2,2.855]
[1720640550681,2.4688,3116.3,3115.2,2.855]
[1720640550884,0.55,3116.2,3115.2,2.855]
[1720640552472,2.4298,3116.1,3115.2,2.855]
[1720640552781,2.4298,3115.9,3115.2,2.855]
[1720640552986,0.55,3115.8,3115.2,2.855]
[1720640554098,2.3311,3115.7,3115.2,2.855]
[1720640554271,0.55,3115.6,3114.8,2.855]
[1720640554597,0.55,3115.6,3114.8,3.8805]
[1720640555998,2.4624,3115.5,3114.8,3.8805]
[1720640556297,0.55,3115.4,3114.8,3.8805]
[1720640558404,0.55,3115.4,3114.8,2.855]
[1720640566023,0.3361569,3115.3,3114.8,2.855]
[1720640569915,0.3361569,3115.3,3114.9,0.06420264]
[1720640570218,0.3361569,3115.3,3114.8,2.855]
[1720640570219,0.3361569,3115.3,3115.2,2.855]
[1720640579552,0.3361569,3115.3,3115.2,5.855]
[1720640579741,0.3361569,3115.3,3115.2,6.66782]
[1720640580858,2.4599,3116.3,3115.2,6.66782]
[1720640581055,0.33611703,3115.8,3115.3,3.06417962]
[1720640581353,9.7844,3116.5,3115.7,2.855]
[1720640581521,0.33611241,3115.8,3115.7,2.855]
[1720640581862,1.03625047,3116.4,3115.7,3.1405]
[1720640582057,0.3361123,3115.8,3115.7,3.1405]
[1720640582365,2.3444,3116.5,3115.7,3.1405]
[1720640582577,0.3361123,3115.8,3115.7,3.1405]
[1720640582772,1.03628529,3116.4,3115.7,3.1405]
[1720640582923,1.03628529,3116.4,3115.8,0.31405]
[1720640583252,2.3444,3116.5,3115.8,0.31405]
[1720640583461,2.3444,3116.5,3115.8,3.31405]
[1720640583462,0.33610683,3116.3,3115.8,3.31405]
[1720640585063,2.4392,3116.2,3115.8,3.31405]
[1720640585270,2.4392,3116.2,3115.8,3.0]
[1720640588386,0.33610683,3116.3,3115.8,3.0]
[1720640589581,1.37239109,3116.3,3115.8,3.0]
[1720640589815,0.33610683,3116.3,3115.8,3.0]
[1720640590328,2.4397,3116.2,3115.8,3.0]
[1720640590485,1.03628367,3116.1,3115.8,3.0]
[1720640591015,1.03628367,3116.1,3115.3,2.855]
[1720640592081,2.9901,3116.0,3114.9,2.855]
[1720640592315,2.2714,3115.8,3114.9,2.855]
[1720640592645,1.03628367,3115.7,3114.9,2.855]
[1720640592816,2.2714,3115.8,3114.9,2.855]
[1720640592978,1.03661423,3115.7,3114.9,2.855]
[1720640593178,1.03661423,3115.7,3115.0,0.2855]
[1720640593691,1.03661423,3115.7,3114.9,2.855]
[1720640593907,2.2714,3115.5,3114.9,2.855]
[1720640594219,1.03661423,3115.4,3114.9,2.855]
[1720640596393,1.03676272,3115.3,3114.9,2.855]
[1720640596596,1.03676272,3115.2,3114.9,2.855]
[1720640596900,2.2714,3115.5,3114.9,2.855]
[1720640597112,1.58676378,3115.4,3114.9,2.855]
[1720640597285,1.03676378,3115.3,3114.9,2.855]
[1720640598613,0.33613072,3115.2,3114.9,2.855]
[1720640599724,1.37294123,3115.2,3114.9,2.855]
[1720640600060,0.33613072,3115.2,3114.9,2.855]
[1720640601846,0.33613072,3115.2,3114.9,3.1405]
[1720640604149,0.63613072,3115.2,3114.9,3.1405]
[1720640606655,0.63613072,3115.2,3115.0,3.06419671]
[1720640606963,0.3,3115.2,3115.1,2.3379]
[1720640607156,0.3,3115.2,3115.1,3.19215883]
[1720640607327,0.3,3115.2,3115.1,6.19215883]
[1720640607537,0.3,3115.2,3115.1,6.25634458]
[1720640607921,0.3,3115.2,3115.1,6.19215883]
[1720640611726,0.33608558,3115.7,3115.2,2.3454]
[1720640612029,0.33608558,3115.7,3115.6,2.855]
[1720640612737,0.33608558,3115.7,3115.6,5.855]
[1720640613553,0.33608558,3115.7,3115.6,8.318]
[1720640614285,0.33608558,3115.7,3115.6,5.855]
[1720640614479,0.33608558,3115.7,3115.6,6.4405]
[1720640614754,1.03623359,3116.4,3115.6,6.4405]
[1720640615159,1.03623359,3116.4,3115.7,3.0]
[1720640616397,2.4354,3116.3,3115.7,3.0]
[1720640616558,2.4354,3116.1,3115.3,3.0]
[1720640616760,1.03623359,3116.0,3115.8,1.19]
[1720640616959,2.4354,3116.1,3115.8,1.19]
[1720640617162,1.03653754,3116.0,3115.8,1.19]
[1720640617387,1.03653662,3115.9,3115.8,1.19]
[1720640617581,2.4354,3116.1,3115.8,1.19]
[1720640617582,1.03653662,3116.0,3115.8,1.19]
[1720640618592,1.03653662,3116.0,3115.4,2.856]
[1720640618763,1.03653662,3116.0,3115.5,3.32894893]
[1720640619301,1.03653662,3116.0,3115.5,3.0]
[1720640620761,2.4354,3116.1,3115.5,3.0]
[1720640620977,1.03644285,3116.0,3115.5,3.0]
[1720640623377,1.03644285,3116.0,3115.4,2.856]
[1720640623592,3.96544285,3115.9,3115.0,10.256]
[1720640623797,1.43298714,3115.8,3115.0,10.256]
[1720640624105,1.03644285,3115.7,3115.0,10.256]
[1720640624317,1.03644285,3115.7,3115.0,2.856]
[1720640624467,1.03662094,3115.6,3115.0,2.856]
[1720640624665,2.379,3115.8,3115.1,3.0]
[1720640624961,1.03659197,3115.7,3115.1,3.0]
[1720640625164,1.03659197,3115.7,3115.1,3.5856]
[1720640627769,2.379,3115.8,3115.1,3.5856]
[1720640627986,1.03667687,3115.7,3115.1,3.0]
[1720640629504,2.8698,3115.6,3114.4,9.8952]
[1720640629709,2.8698,3115.6,3114.4,12.7512]
[1720640629999,1.03667687,3115.5,3114.4,12.7512]
[1720640630181,0.55,3115.4,3114.5,1.27512]
[1720640630598,1.03687935,3115.3,3114.5,1.27512]
[1720640630802,1.03687935,3115.3,3114.5,4.27512]
[1720640631282,0.55,3115.4,3114.5,4.27512]
[1720640631604,1.03674014,3115.3,3114.5,4.27512]
[1720640631807,1.03674014,3115.3,3114.6,1.702632]
[1720640631982,1.03674014,3115.3,3114.6,4.702632]
[1720640632402,2.3974,3115.2,3114.5,3.0]
[1720640632604,1.03674014,3115.1,3114.5,3.0]
[1720640633902,0.55,3115.0,3114.5,3.0]
[1720640634272,3.49928157,3114.9,3114.4,2.856]
[1720640634485,1.58708506,3114.8,3114.0,7.4]
[1720640634704,0.40493851,3114.7,3114.0,7.4]
[1720640634904,4.04955031,3114.6,3114.0,7.4]
[1720640635104,1.03725031,3114.5,3114.0,7.4]
[1720640635511,0.55,3114.4,3114.0,7.4]
[1720640635694,1.03725031,3114.3,3114.0,7.4]
[1720640635870,1.03725031,3114.3,3113.5,2.856]
[1720640636075,2.3926,3114.2,3113.6,1.0256]